[Event "*** Titled Tuesday 3|2 Blitz"]
[Site "Chess.com"]
[Date "2016.06.07"]
[Round "5"]
[White "jcibarra"]
[Black "Fandorine"]
[Result "1-0"]
[WhiteElo "2648"]
[BlackElo "2610"]
[TimeControl "180+2"]
[EndTime "18:00:55 PDT"]
[Termination "jcibarra won by resignation"]

1. e4 {[%clk 0:03:01.9]} 1... c6 {[%clk 0:03:01.1]} 2. d4 {[%clk 0:03:01.5]}
2... d5 {[%clk 0:03:02.3]} 3. e5 {[%clk 0:03:03.1]} 3... c5 {[%clk 0:02:59.1]}
4. dxc5 {[%clk 0:03:03.5]} 4... Nc6 {[%clk 0:03:00.5]} 5. a3 {[%clk 0:03:04.5]}
5... Nxe5 {[%clk 0:03:01.4]} 6. b4 {[%clk 0:03:05.8]} 6... g6 {[%clk 0:03:01.3]}
7. Bb5+ {[%clk 0:03:06.7]} 7... Nc6 {[%clk 0:03:02.4]} 8. Bb2 {[%clk 0:03:06.6]}
8... Nf6 {[%clk 0:03:04]} 9. Nc3 {[%clk 0:03:04.8]} 9... e6 {[%clk 0:02:09.3]}
10. Nf3 {[%clk 0:03:03.5]} 10... Bg7 {[%clk 0:02:07.1]} 11. Ne2 {[%clk
0:03:02.5]} 11... O-O {[%clk 0:02:07.6]} 12. O-O {[%clk 0:03:02.9]} 12... Bd7
{[%clk 0:02:06.3]} 13. Bd3 {[%clk 0:02:53.3]} 13... Qc7 {[%clk 0:02:05.7]} 14.
c4 {[%clk 0:02:53]} 14... Rad8 {[%clk 0:01:50.4]} 15. cxd5 {[%clk 0:02:52.1]}
15... Nxd5 {[%clk 0:01:52.3]} 16. Bxg7 {[%clk 0:02:50.1]} 16... Kxg7 {[%clk
0:01:54.2]} 17. Qb3 {[%clk 0:02:47.5]} 17... Nf4 {[%clk 0:01:53]} 18. Qc3+
{[%clk 0:02:45.1]} 18... f6 {[%clk 0:01:52]} 19. Nxf4 {[%clk 0:02:42.7]} 19...
Qxf4 {[%clk 0:01:53.9]} 20. Rad1 {[%clk 0:02:40.3]} 20... e5 {[%clk 0:01:52.4]}
21. Be2 {[%clk 0:02:32.5]} 21... Bg4 {[%clk 0:01:34.8]} 22. b5 {[%clk
0:02:23.2]} 22... Bxf3 {[%clk 0:01:20.7]} 23. Rxd8 {[%clk 0:01:42.3]} 23... Rxd8
{[%clk 0:01:19.8]} 24. Qxf3 {[%clk 0:01:41.8]} 24... Nd4 {[%clk 0:00:56.2]} 25.
Qxb7+ {[%clk 0:01:38.9]} 25... Kh6 {[%clk 0:00:57.6]} 26. Bd1 {[%clk 0:01:32.8]}
26... e4 {[%clk 0:00:49.5]} 27. c6 {[%clk 0:01:31]} 27... e3 {[%clk 0:00:14.9]}
28. fxe3 {[%clk 0:01:21.1]} 28... Qxe3+ {[%clk 0:00:15.7]} 29. Kh1 {[%clk
0:01:22.4]} 29... Ne6 {[%clk 0:00:09.4]} 30. h3 {[%clk 0:01:05.9]} 30... Qd3
{[%clk 0:00:06.9]} 31. Rg1 {[%clk 0:01:03.5]} 31... Qc4 {[%clk 0:00:04.3]} 32.
a4 {[%clk 0:00:49.6]} 32... Rd3 {[%clk 0:00:03.4]} 33. Bf3 {[%clk 0:00:35.4]}
33... Qc5 {[%clk 0:00:03.4]} 34. Qb8 {[%clk 0:00:30]} 34... Ng5 {[%clk
0:00:04.1]} 35. Qf4 {[%clk 0:00:29.4]} 35... Rc3 {[%clk 0:00:04.5]} 36. h4
{[%clk 0:00:28.5]} 36... Kg7 {[%clk 0:00:06.1]} 37. hxg5 {[%clk 0:00:29.4]}
37... fxg5 {[%clk 0:00:08]} 38. Qc7+ {[%clk 0:00:29.8]} 38... Kh6 {[%clk
0:00:09.6]} 39. Qh2+ {[%clk 0:00:30]} 39... Kg7 {[%clk 0:00:10.7]} 40. Re1
{[%clk 0:00:30.3]} 40... Rc1 {[%clk 0:00:07.9]} 41. Rxc1 {[%clk 0:00:28.3]}
41... Qxc1+ {[%clk 0:00:09.5]} 42. Qg1 {[%clk 0:00:30.2]} 42... Qc4 {[%clk
0:00:11.3]} 43. Qxa7+ {[%clk 0:00:30.7]} 43... Kh6 {[%clk 0:00:11.8]} 44. Qf2
{[%clk 0:00:28.5]} 44... Kg7 {[%clk 0:00:12.4]} 45. b6 {[%clk 0:00:27.3]} 45...
h5 {[%clk 0:00:13.4]} 46. b7 {[%clk 0:00:26.7]} 46... g4 {[%clk 0:00:14.8]} 47.
b8=Q {[%clk 0:00:27]} 1-0

[Event "*** Titled Tuesday 3|2 Blitz"]
[Site "Chess.com"]
[Date "2016.06.07"]
[Round "5"]
[White "Fawolizzo"]
[Black "akinov-akinseye"]
[Result "1-0"]
[WhiteElo "1994"]
[BlackElo "1704"]
[TimeControl "180+2"]
[EndTime "18:01:05 PDT"]
[Termination "Fawolizzo won on time"]

1. d4 {[%clk 0:02:56.9]} 1... d5 {[%clk 0:02:59.8]} 2. Nf3 {[%clk 0:02:57.6]}
2... Nf6 {[%clk 0:03:00]} 3. c4 {[%clk 0:02:58.5]} 3... e6 {[%clk 0:02:59.6]} 4.
Nbd2 {[%clk 0:02:57.4]} 4... c5 {[%clk 0:02:58.5]} 5. cxd5 {[%clk 0:02:56.8]}
5... exd5 {[%clk 0:02:58.7]} 6. e3 {[%clk 0:02:57.7]} 6... cxd4 {[%clk
0:02:58.8]} 7. Nxd4 {[%clk 0:02:56]} 7... Be7 {[%clk 0:02:57]} 8. Bb5+ {[%clk
0:02:54.2]} 8... Bd7 {[%clk 0:02:55.5]} 9. Bd3 {[%clk 0:02:50.6]} 9... O-O
{[%clk 0:02:55.4]} 10. O-O {[%clk 0:02:51.3]} 10... Nc6 {[%clk 0:02:56.2]} 11.
Nf5 {[%clk 0:02:49.9]} 11... Bxf5 {[%clk 0:02:55.6]} 12. Bxf5 {[%clk 0:02:49.7]}
12... Bd6 {[%clk 0:02:53.7]} 13. Nb3 {[%clk 0:02:48.7]} 13... Qc7 {[%clk
0:02:47.8]} 14. h3 {[%clk 0:02:44.9]} 14... Rad8 {[%clk 0:02:47.8]} 15. Bd2
{[%clk 0:02:41.8]} 15... Be5 {[%clk 0:02:43.5]} 16. Qb1 {[%clk 0:02:24.2]} 16...
h6 {[%clk 0:02:42.9]} 17. Rc1 {[%clk 0:02:23.7]} 17... Qe7 {[%clk 0:02:32.9]}
18. Bc3 {[%clk 0:02:19.7]} 18... d4 {[%clk 0:02:21.3]} 19. exd4 {[%clk
0:02:14.6]} 19... Bxd4 {[%clk 0:02:22.3]} 20. Nxd4 {[%clk 0:02:07.2]} 20... Nxd4
{[%clk 0:02:22.7]} 21. Re1 {[%clk 0:01:54.6]} 21... Qc5 {[%clk 0:02:15.7]} 22.
Bd3 {[%clk 0:01:48.7]} 22... Nd5 {[%clk 0:02:06.2]} 23. Bd2 {[%clk 0:01:42.4]}
23... Nb4 {[%clk 0:02:01]} 24. Bxb4 {[%clk 0:01:39.2]} 24... Qxb4 {[%clk
0:02:01.3]} 25. Re4 {[%clk 0:01:34.6]} 25... Qd6 {[%clk 0:01:57.4]} 26. Re3
{[%clk 0:01:28.4]} 26... Ne6 {[%clk 0:01:52.4]} 27. Qe1 {[%clk 0:01:24.1]} 27...
Nf4 {[%clk 0:01:43.7]} 28. Bf1 {[%clk 0:01:21.1]} 28... Ne6 {[%clk 0:01:34.2]}
29. Rc1 {[%clk 0:01:18.7]} 29... Qb6 {[%clk 0:01:32.9]} 30. Rb3 {[%clk 0:01:18]}
30... Qd4 {[%clk 0:01:10.3]} 31. Rxb7 {[%clk 0:01:15.8]} 31... Qd5 {[%clk
0:00:59.4]} 32. Rxa7 {[%clk 0:01:09.2]} 32... Rb8 {[%clk 0:00:57]} 33. b3 {[%clk
0:01:08]} 33... Qg5 {[%clk 0:00:53.8]} 34. Ra5 {[%clk 0:01:05.6]} 34... Qg6
{[%clk 0:00:50.9]} 35. Re5 {[%clk 0:00:54.6]} 35... Nd4 {[%clk 0:00:49.8]} 36.
Qe4 {[%clk 0:00:46.8]} 36... Qxe4 {[%clk 0:00:34.4]} 37. Rxe4 {[%clk 0:00:47]}
37... Ne6 {[%clk 0:00:30.7]} 38. Bc4 {[%clk 0:00:46.2]} 38... Ng5 {[%clk
0:00:29.9]} 39. Re7 {[%clk 0:00:46.5]} 39... Ra8 {[%clk 0:00:30.3]} 40. a4
{[%clk 0:00:46.7]} 40... Rae8 {[%clk 0:00:25.1]} 41. Rce1 {[%clk 0:00:46.2]}
41... Rb8 {[%clk 0:00:11.1]} 42. a5 {[%clk 0:00:44.7]} 42... Nh7 {[%clk
0:00:06.2]} 43. a6 {[%clk 0:00:45.2]} 43... Ra8 {[%clk 0:00:05.7]} 44. a7 {[%clk
0:00:45.2]} 44... Nf6 {[%clk 0:00:07.3]} 45. b4 {[%clk 0:00:45.7]} 1-0

[Event "*** Titled Tuesday 3|2 Blitz"]
[Site "Chess.com"]
[Date "2016.06.07"]
[Round "5"]
[White "Ksenia_Legenko"]
[Black "Andrejkin"]
[Result "1-0"]
[WhiteElo "2049"]
[BlackElo "2124"]
[TimeControl "180+2"]
[EndTime "18:01:06 PDT"]
[Termination "Ksenia_Legenko won by checkmate"]

1. d4 {[%clk 0:03:01.2]} 1... d5 {[%clk 0:02:59.7]} 2. c4 {[%clk 0:02:59.6]}
2... c6 {[%clk 0:03:01.3]} 3. Nf3 {[%clk 0:03:00.2]} 3... Nf6 {[%clk 0:03:02.7]}
4. g3 {[%clk 0:03:01.3]} 4... h6 {[%clk 0:02:43.6]} 5. Qc2 {[%clk 0:02:59.1]}
5... e6 {[%clk 0:02:42]} 6. Bg2 {[%clk 0:02:59.6]} 6... Nbd7 {[%clk 0:02:42.7]}
7. O-O {[%clk 0:03:00.9]} 7... Be7 {[%clk 0:02:44.3]} 8. Nbd2 {[%clk 0:03:02.3]}
8... O-O {[%clk 0:02:44.6]} 9. e4 {[%clk 0:03:03.8]} 9... dxe4 {[%clk
0:02:43.7]} 10. Nxe4 {[%clk 0:03:05.3]} 10... Nxe4 {[%clk 0:02:43.8]} 11. Qxe4
{[%clk 0:03:06.2]} 11... Nf6 {[%clk 0:02:45.4]} 12. Qc2 {[%clk 0:03:06.9]} 12...
b6 {[%clk 0:02:36]} 13. Ne5 {[%clk 0:02:59.5]} 13... Bb7 {[%clk 0:02:29.7]} 14.
Rd1 {[%clk 0:02:43.9]} 14... Rc8 {[%clk 0:02:28.9]} 15. c5 {[%clk 0:02:43.4]}
15... Nd5 {[%clk 0:02:27]} 16. a3 {[%clk 0:02:32.8]} 16... Qc7 {[%clk
0:02:11.5]} 17. Nf3 {[%clk 0:01:50.2]} 17... Rfd8 {[%clk 0:02:07.1]} 18. b4
{[%clk 0:01:48.6]} 18... a5 {[%clk 0:02:00.9]} 19. Bd2 {[%clk 0:01:38.2]} 19...
axb4 {[%clk 0:01:56.1]} 20. axb4 {[%clk 0:01:36.6]} 20... Ra8 {[%clk 0:01:57.5]}
21. Ne5 {[%clk 0:01:26.2]} 21... Bf6 {[%clk 0:01:50.4]} 22. f4 {[%clk 0:01:17]}
22... b5 {[%clk 0:01:43.4]} 23. Qe4 {[%clk 0:01:02.4]} 23... g6 {[%clk 0:01:12]}
24. g4 {[%clk 0:00:48.1]} 24... Bg7 {[%clk 0:01:11.6]} 25. g5 {[%clk 0:00:46.5]}
25... h5 {[%clk 0:01:09.9]} 26. Bf1 {[%clk 0:00:35.6]} 26... Ne7 {[%clk
0:01:00.2]} 27. Bh3 {[%clk 0:00:28.6]} 27... Nd5 {[%clk 0:00:50.6]} 28. Nxg6
{[%clk 0:00:15.5]} 28... fxg6 {[%clk 0:00:49.2]} 29. Qxg6 {[%clk 0:00:14.9]}
29... Rxa1 {[%clk 0:00:40.4]} 30. Bxe6+ {[%clk 0:00:11.9]} 30... Kf8 {[%clk
0:00:37]} 31. Rxa1 {[%clk 0:00:13.2]} 31... Bxd4+ {[%clk 0:00:36.5]} 32. Kh1
{[%clk 0:00:12.3]} 32... Qg7 {[%clk 0:00:33.4]} 33. Qf5+ {[%clk 0:00:11.7]}
33... Ke7 {[%clk 0:00:29.5]} 34. Ra7 {[%clk 0:00:13.2]} 34... Rb8 {[%clk
0:00:29.6]} 35. g6 {[%clk 0:00:13]} 35... Bf6 {[%clk 0:00:18.3]} 36. Bf7 {[%clk
0:00:13.8]} 36... Nc7 {[%clk 0:00:16.9]} 37. Qe4+ {[%clk 0:00:13.9]} 37... Kd8
{[%clk 0:00:15.3]} 38. f5 {[%clk 0:00:13.9]} 38... Be5 {[%clk 0:00:15.3]} 39.
Bg5+ {[%clk 0:00:14.5]} 39... Bf6 {[%clk 0:00:15.5]} 40. Bf4 {[%clk 0:00:16.1]}
40... Nd5 {[%clk 0:00:14.1]} 41. Rxb7 {[%clk 0:00:16]} 41... Rxb7 {[%clk
0:00:14.9]} 42. Qe8# {[%clk 0:00:16.7]} 1-0

[Event "*** Titled Tuesday 3|2 Blitz"]
[Site "Chess.com"]
[Date "2016.06.07"]
[Round "5"]
[White "bugsbunny444"]
[Black "Mornar1951"]
[Result "0-1"]
[WhiteElo "2362"]
[BlackElo "2501"]
[TimeControl "180+2"]
[EndTime "18:01:23 PDT"]
[Termination "Mornar1951 won by resignation"]

1. Nf3 {[%clk 0:03:01.9]} 1... Nf6 {[%clk 0:02:59.8]} 2. c4 {[%clk 0:03:02.1]}
2... e6 {[%clk 0:03:00.8]} 3. g3 {[%clk 0:03:02.9]} 3... d5 {[%clk 0:03:02.2]}
4. Bg2 {[%clk 0:03:03.2]} 4... dxc4 {[%clk 0:03:03.3]} 5. Qc2 {[%clk 0:03:03.9]}
5... c5 {[%clk 0:02:58.9]} 6. Ne5 {[%clk 0:03:02.3]} 6... Nbd7 {[%clk
0:02:43.2]} 7. Nxd7 {[%clk 0:02:58.6]} 7... Qxd7 {[%clk 0:02:36]} 8. Na3 {[%clk
0:02:57.7]} 8... Rb8 {[%clk 0:02:19.7]} 9. Nxc4 {[%clk 0:02:56]} 9... b5 {[%clk
0:02:15.6]} 10. Ne5 {[%clk 0:02:53.4]} 10... Qc7 {[%clk 0:02:16.3]} 11. d3
{[%clk 0:02:31.9]} 11... Bb7 {[%clk 0:01:58.7]} 12. Bxb7 {[%clk 0:02:10.1]}
12... Qxb7 {[%clk 0:01:58.9]} 13. O-O {[%clk 0:02:08.1]} 13... Bd6 {[%clk
0:01:59.7]} 14. Nf3 {[%clk 0:02:00.7]} 14... O-O {[%clk 0:02:00.2]} 15. a4
{[%clk 0:01:51.9]} 15... a6 {[%clk 0:01:59.8]} 16. axb5 {[%clk 0:01:45.4]} 16...
axb5 {[%clk 0:02:01.7]} 17. Be3 {[%clk 0:01:26]} 17... Rfc8 {[%clk 0:01:52.4]}
18. Rfc1 {[%clk 0:01:21.2]} 18... Nd5 {[%clk 0:01:52.9]} 19. Bd2 {[%clk
0:01:22.4]} 19... c4 {[%clk 0:01:51.3]} 20. Be1 {[%clk 0:01:13.5]} 20... h6
{[%clk 0:01:40.2]} 21. Qd1 {[%clk 0:01:01.7]} 21... Bf8 {[%clk 0:01:32.4]} 22.
Rab1 {[%clk 0:00:38.9]} 22... Rd8 {[%clk 0:01:21.8]} 23. Qc2 {[%clk 0:00:28.6]}
23... cxd3 {[%clk 0:01:17.5]} 24. Qxd3 {[%clk 0:00:29.7]} 24... Nf4 {[%clk
0:01:11]} 25. Qe3 {[%clk 0:00:20.5]} 25... Nh3+ {[%clk 0:01:07.5]} 26. Kg2
{[%clk 0:00:19.4]} 26... Ng5 {[%clk 0:01:08.6]} 27. h4 {[%clk 0:00:19.9]} 27...
Ne4 {[%clk 0:01:04.5]} 28. Ra1 {[%clk 0:00:17]} 28... Qd5 {[%clk 0:00:59.1]} 29.
Kg1 {[%clk 0:00:11.5]} 29... Bc5 {[%clk 0:00:58.4]} 30. Rxc5 {[%clk 0:00:06.7]}
30... Nxc5 {[%clk 0:00:58.2]} 31. Bc3 {[%clk 0:00:07.9]} 31... Rbc8 {[%clk
0:00:43]} 32. Ba5 {[%clk 0:00:07]} 32... Re8 {[%clk 0:00:36.5]} 33. Bb4 {[%clk
0:00:04.9]} 33... Nb3 {[%clk 0:00:30.9]} 34. Ra3 {[%clk 0:00:05.5]} 34... Nc5
{[%clk 0:00:26.6]} 35. Kh2 {[%clk 0:00:05.1]} 35... e5 {[%clk 0:00:27.2]} 36.
Rc3 {[%clk 0:00:04.7]} 36... Ne4 {[%clk 0:00:24.9]} 37. Rd3 {[%clk 0:00:05.7]}
37... Qb7 {[%clk 0:00:24.8]} 38. Nd2 {[%clk 0:00:03.5]} 38... Nxd2 {[%clk
0:00:25]} 39. Qxd2 {[%clk 0:00:05.4]} 39... Qb6 {[%clk 0:00:23.9]} 40. Kg2
{[%clk 0:00:05.3]} 40... Rcd8 {[%clk 0:00:24.1]} 41. Ba5 {[%clk 0:00:05.3]}
41... Qc6+ {[%clk 0:00:23.9]} 42. f3 {[%clk 0:00:05.7]} 42... Rxd3 {[%clk
0:00:24.9]} 43. Qxd3 {[%clk 0:00:06.8]} 43... e4 {[%clk 0:00:26.3]} 44. Qc3
{[%clk 0:00:06.9]} 44... exf3+ {[%clk 0:00:26.9]} 45. exf3 {[%clk 0:00:08.8]}
45... Re2+ {[%clk 0:00:27]} 46. Kf1 {[%clk 0:00:10.1]} 46... Qxc3 {[%clk
0:00:27.6]} 47. bxc3 {[%clk 0:00:09.2]} 47... Ra2 {[%clk 0:00:26.7]} 48. Bb4
{[%clk 0:00:09.8]} 48... h5 {[%clk 0:00:27.9]} 49. Kg1 {[%clk 0:00:09.3]} 49...
f5 {[%clk 0:00:28.6]} 50. Kf1 {[%clk 0:00:09.3]} 50... g6 {[%clk 0:00:29.8]} 51.
Kg1 {[%clk 0:00:10.6]} 51... Kf7 {[%clk 0:00:31.4]} 52. Kf1 {[%clk 0:00:11.9]}
52... Ke6 {[%clk 0:00:32.9]} 53. Ke1 {[%clk 0:00:10.7]} 53... Kd5 {[%clk
0:00:34.1]} 54. Be7 {[%clk 0:00:11.1]} 54... Kc4 {[%clk 0:00:33.9]} 55. Bf6
{[%clk 0:00:11.9]} 55... Rc2 {[%clk 0:00:33.7]} 56. Kd1 {[%clk 0:00:12.5]} 56...
Rxc3 {[%clk 0:00:34.9]} 0-1

[Event "*** Titled Tuesday 3|2 Blitz"]
[Site "Chess.com"]
[Date "2016.06.07"]
[Round "5"]
[White "chessking2151"]
[Black "severomorskij"]
[Result "1/2-1/2"]
[WhiteElo "2335"]
[BlackElo "2589"]
[TimeControl "180+2"]
[EndTime "18:01:53 PDT"]
[Termination "Game drawn by agreement"]

1. e4 {[%clk 0:03:01.9]} 1... c5 {[%clk 0:03:00.2]} 2. c3 {[%clk 0:03:01.4]}
2... d5 {[%clk 0:02:57.4]} 3. exd5 {[%clk 0:03:01.7]} 3... Qxd5 {[%clk
0:02:58.5]} 4. d4 {[%clk 0:03:02.9]} 4... Nf6 {[%clk 0:02:58.9]} 5. Nf3 {[%clk
0:03:03.7]} 5... Bf5 {[%clk 0:02:59.8]} 6. Be3 {[%clk 0:03:01.5]} 6... Nc6
{[%clk 0:02:52.7]} 7. Na3 {[%clk 0:02:25.4]} 7... e6 {[%clk 0:02:43.1]} 8. Nb5
{[%clk 0:02:24.1]} 8... O-O-O {[%clk 0:02:42]} 9. c4 {[%clk 0:02:04.8]} 9... Qd7
{[%clk 0:02:35.9]} 10. dxc5 {[%clk 0:02:03.8]} 10... Qxd1+ {[%clk 0:02:14.1]}
11. Rxd1 {[%clk 0:02:02]} 11... Rxd1+ {[%clk 0:02:15.1]} 12. Kxd1 {[%clk
0:02:03.9]} 12... Ne4 {[%clk 0:02:15.2]} 13. Kc1 {[%clk 0:01:57.6]} 13... a6
{[%clk 0:02:04.8]} 14. Nbd4 {[%clk 0:01:56.4]} 14... Bxc5 {[%clk 0:01:55.1]} 15.
Nxc6 {[%clk 0:01:41.2]} 15... Bxe3+ {[%clk 0:01:52.4]} 16. fxe3 {[%clk
0:01:41.7]} 16... bxc6 {[%clk 0:01:53.9]} 17. Be2 {[%clk 0:01:42.4]} 17... c5
{[%clk 0:01:51.2]} 18. Ne5 {[%clk 0:01:38.8]} 18... f6 {[%clk 0:01:45.1]} 19.
Nd3 {[%clk 0:01:05.6]} 19... Kc7 {[%clk 0:01:45.5]} 20. Bf3 {[%clk 0:00:58.9]}
20... Kb6 {[%clk 0:01:45.4]} 21. Rd1 {[%clk 0:00:47.7]} 21... Rd8 {[%clk
0:01:34.1]} 22. g4 {[%clk 0:00:36.4]} 22... Bg6 {[%clk 0:01:31.6]} 23. Nf4
{[%clk 0:00:29.3]} 23... Rxd1+ {[%clk 0:01:31.2]} 24. Kxd1 {[%clk 0:00:31.2]}
24... Ng5 {[%clk 0:01:29.9]} 25. Bg2 {[%clk 0:00:29.9]} 25... e5 {[%clk
0:00:58.3]} 26. Nd5+ {[%clk 0:00:29.5]} 26... Ka7 {[%clk 0:00:59.2]} 27. h4
{[%clk 0:00:30.8]} 27... Ne6 {[%clk 0:00:58.8]} 28. Kd2 {[%clk 0:00:21.4]} 28...
h5 {[%clk 0:00:56.4]} 29. Ne7 {[%clk 0:00:17.2]} 29... Bf7 {[%clk 0:00:52]} 30.
gxh5 {[%clk 0:00:16.6]} 30... Bxh5 {[%clk 0:00:52.3]} 31. Bh3 {[%clk 0:00:16.3]}
31... Bf7 {[%clk 0:00:43.3]} 32. Nf5 {[%clk 0:00:16.2]} 32... Kb6 {[%clk
0:00:37.9]} 33. b3 {[%clk 0:00:13.4]} 33... Kc7 {[%clk 0:00:33.3]} 34. Bg2
{[%clk 0:00:12.8]} 34... g6 {[%clk 0:00:26.9]} 35. Nh6 {[%clk 0:00:14]} 35...
Be8 {[%clk 0:00:19.1]} 36. Ng4 {[%clk 0:00:13.6]} 36... f5 {[%clk 0:00:19]} 37.
Nxe5 {[%clk 0:00:13.9]} 37... Kd6 {[%clk 0:00:20.5]} 38. Nd3 {[%clk 0:00:14.9]}
38... Ke7 {[%clk 0:00:17.5]} 39. a3 {[%clk 0:00:14.9]} 39... a5 {[%clk
0:00:18.3]} 40. Bd5 {[%clk 0:00:15.7]} 40... Nc7 {[%clk 0:00:16.9]} 41. Bf3
{[%clk 0:00:14.6]} 41... Kd6 {[%clk 0:00:15.9]} 42. b4 {[%clk 0:00:16.1]} 42...
axb4 {[%clk 0:00:16.9]} 43. axb4 {[%clk 0:00:17.5]} 43... cxb4 {[%clk
0:00:18.4]} 44. c5+ {[%clk 0:00:18.6]} 44... Ke7 {[%clk 0:00:16.9]} 45. Nxb4
{[%clk 0:00:20.5]} 45... Ne6 {[%clk 0:00:17.7]} 46. Nd5+ {[%clk 0:00:21]} 46...
Kf7 {[%clk 0:00:13.9]} 47. Kd3 {[%clk 0:00:16.3]} 47... Nxc5+ {[%clk 0:00:14.5]}
48. Kd4 {[%clk 0:00:17.9]} 48... Nb3+ {[%clk 0:00:13.5]} 49. Ke5 {[%clk
0:00:18.9]} 49... Bc6 {[%clk 0:00:12.7]} 50. h5 {[%clk 0:00:18]} 50... gxh5
{[%clk 0:00:09.1]} 51. Bxh5+ {[%clk 0:00:18.4]} 51... Kg7 {[%clk 0:00:10.1]} 52.
Ne7 {[%clk 0:00:19.9]} 52... Bd7 {[%clk 0:00:08.3]} 53. Kd6 {[%clk 0:00:21.2]}
53... Bb5 {[%clk 0:00:06]} 54. Nxf5+ {[%clk 0:00:21.1]} 54... Kf6 {[%clk
0:00:07.5]} 55. Ng3 {[%clk 0:00:18.2]} 55... Nd2 {[%clk 0:00:08]} 56. e4 {[%clk
0:00:16.4]} 56... Nxe4+ {[%clk 0:00:07.7]} 57. Nxe4+ {[%clk 0:00:17.8]} 57...
Kf5 {[%clk 0:00:09.1]} 58. Nc3 {[%clk 0:00:19.3]} 58... Ba6 {[%clk 0:00:09]} 59.
Kc5 {[%clk 0:00:20.5]} 59... Kf4 {[%clk 0:00:09.9]} 60. Kb6 {[%clk 0:00:21.8]}
60... Bd3 {[%clk 0:00:10.7]} 61. Kc5 {[%clk 0:00:22.5]} 61... Ke5 {[%clk
0:00:11.9]} 62. Bd1 {[%clk 0:00:23.1]} 62... Bf5 {[%clk 0:00:13.1]} 63. Ne2
{[%clk 0:00:23.7]} 63... Bg4 {[%clk 0:00:13.5]} 1/2-1/2

[Event "*** Titled Tuesday 3|2 Blitz"]
[Site "Chess.com"]
[Date "2016.06.07"]
[Round "5"]
[White "ilya261991"]
[Black "GianmarcoVaR"]
[Result "0-1"]
[WhiteElo "2509"]
[BlackElo "2355"]
[TimeControl "180+2"]
[EndTime "18:02:28 PDT"]
[Termination "GianmarcoVaR won on time"]

1. d4 {[%clk 0:03:01.9]} 1... g6 {[%clk 0:02:59.2]} 2. c4 {[%clk 0:02:59.9]}
2... Bg7 {[%clk 0:03:00.6]} 3. e4 {[%clk 0:03:01.2]} 3... d6 {[%clk 0:03:02]} 4.
Nc3 {[%clk 0:02:59.8]} 4... e5 {[%clk 0:02:59.9]} 5. Nge2 {[%clk 0:02:57]} 5...
Nd7 {[%clk 0:02:54.5]} 6. Be3 {[%clk 0:02:52.9]} 6... Ne7 {[%clk 0:02:55.3]} 7.
h4 {[%clk 0:02:52.9]} 7... f5 {[%clk 0:02:52.3]} 8. h5 {[%clk 0:02:44.6]} 8...
f4 {[%clk 0:02:53.2]} 9. Bc1 {[%clk 0:02:41.8]} 9... O-O {[%clk 0:02:48.1]} 10.
d5 {[%clk 0:02:35.4]} 10... g5 {[%clk 0:02:41.9]} 11. f3 {[%clk 0:02:27.7]}
11... h6 {[%clk 0:02:42.6]} 12. g4 {[%clk 0:02:27.6]} 12... Nf6 {[%clk
0:02:38.4]} 13. Ng1 {[%clk 0:02:15.8]} 13... a6 {[%clk 0:02:15.6]} 14. Rb1
{[%clk 0:02:09.2]} 14... Rb8 {[%clk 0:02:11.2]} 15. b4 {[%clk 0:02:05.2]} 15...
c6 {[%clk 0:02:11.6]} 16. Be2 {[%clk 0:02:00.3]} 16... Bd7 {[%clk 0:02:08.7]}
17. Nh3 {[%clk 0:01:55.5]} 17... b5 {[%clk 0:02:08.2]} 18. c5 {[%clk 0:01:51.2]}
18... Nc8 {[%clk 0:01:44.6]} 19. Bb2 {[%clk 0:01:40]} 19... Rf7 {[%clk
0:01:45.6]} 20. Nf2 {[%clk 0:01:40.1]} 20... Bf8 {[%clk 0:01:44.9]} 21. Nd3
{[%clk 0:01:40.5]} 21... a5 {[%clk 0:01:36.9]} 22. a3 {[%clk 0:01:40.2]} 22...
a4 {[%clk 0:01:37.7]} 23. Kf1 {[%clk 0:01:35.7]} 23... Be8 {[%clk 0:01:38.7]}
24. Kg2 {[%clk 0:01:24.4]} 24... dxc5 {[%clk 0:01:33.2]} 25. Nxe5 {[%clk
0:01:20.7]} 25... cxb4 {[%clk 0:01:34.1]} 26. Nxf7 {[%clk 0:01:19.9]} 26... Bxf7
{[%clk 0:01:33.6]} 27. axb4 {[%clk 0:01:19.8]} 27... Bxb4 {[%clk 0:01:10.4]} 28.
dxc6 {[%clk 0:01:20.1]} 28... Qe7 {[%clk 0:01:09.2]} 29. Nd5 {[%clk 0:01:17.2]}
29... Nxd5 {[%clk 0:01:02.4]} 30. exd5 {[%clk 0:01:17.6]} 30... Bc5 {[%clk
0:00:59.8]} 31. Re1 {[%clk 0:01:15.2]} 31... Qe3 {[%clk 0:00:57]} 32. Rf1 {[%clk
0:01:09.5]} 32... Nd6 {[%clk 0:00:54.2]} 33. Rc1 {[%clk 0:01:06.4]} 33... b4
{[%clk 0:00:48.8]} 34. Ba6 {[%clk 0:00:28.5]} 34... Ra8 {[%clk 0:00:43.5]} 35.
Bb7 {[%clk 0:00:26.2]} 35... Re8 {[%clk 0:00:29.2]} 36. Rc2 {[%clk 0:00:26.6]}
36... a3 {[%clk 0:00:27.1]} 37. Bc1 {[%clk 0:00:27.6]} 37... Qd4 {[%clk
0:00:24.9]} 38. Qxd4 {[%clk 0:00:28.7]} 38... Bxd4 {[%clk 0:00:25.5]} 39. c7
{[%clk 0:00:30.2]} 39... Nxb7 {[%clk 0:00:13.4]} 40. c8=Q {[%clk 0:00:30.6]}
40... Rxc8 {[%clk 0:00:14.6]} 41. Rxc8+ {[%clk 0:00:31.6]} 41... Kg7 {[%clk
0:00:15.8]} 42. Rc7 {[%clk 0:00:26.3]} 42... a2 {[%clk 0:00:15.2]} 43. Bd2
{[%clk 0:00:25]} 43... b3 {[%clk 0:00:15.4]} 44. Rxb7 {[%clk 0:00:25.3]} 44...
b2 {[%clk 0:00:16.6]} 45. Rxb2 {[%clk 0:00:06.4]} 45... Bxb2 {[%clk 0:00:17.5]}
46. d6 {[%clk 0:00:07.2]} 46... Kf6 {[%clk 0:00:15.6]} 47. Ba5 {[%clk
0:00:05.2]} 47... Ke6 {[%clk 0:00:14.2]} 48. Bb4 {[%clk 0:00:02.8]} 48... Kd7
{[%clk 0:00:13]} 49. Re1 {[%clk 0:00:02.9]} 49... Be6 {[%clk 0:00:13.4]} 50. Kf2
{[%clk 0:00:03.9]} 50... a1=Q {[%clk 0:00:11.9]} 51. Rxa1 {[%clk 0:00:04.9]}
51... Bxa1 {[%clk 0:00:13.2]} 52. Ke2 {[%clk 0:00:06.4]} 52... Be5 {[%clk
0:00:13.6]} 53. Kd3 {[%clk 0:00:06.8]} 53... Bd5 {[%clk 0:00:14.7]} 54. Ke2
{[%clk 0:00:07]} 54... Ke6 {[%clk 0:00:15.3]} 55. d7 {[%clk 0:00:07.8]} 55...
Kxd7 {[%clk 0:00:14.3]} 56. Bf8 {[%clk 0:00:09.5]} 56... Ke8 {[%clk 0:00:14.7]}
57. Bxh6 {[%clk 0:00:09.6]} 57... Bf6 {[%clk 0:00:15.8]} 58. Kf2 {[%clk
0:00:09.4]} 58... Kf7 {[%clk 0:00:16.8]} 59. Kg2 {[%clk 0:00:09.5]} 59... Be7
{[%clk 0:00:17.2]} 60. Kf2 {[%clk 0:00:09.3]} 60... Kf6 {[%clk 0:00:18]} 61. Ke2
{[%clk 0:00:09.3]} 61... Bc5 {[%clk 0:00:19]} 62. Kd3 {[%clk 0:00:06.5]} 62...
Bxf3 {[%clk 0:00:19.3]} 63. Kc4 {[%clk 0:00:06.2]} 63... Be7 {[%clk 0:00:19.7]}
64. Kd4 {[%clk 0:00:06.6]} 64... Bxg4 {[%clk 0:00:21]} 65. Ke4 {[%clk
0:00:06.8]} 65... Bxh5 {[%clk 0:00:22.1]} 0-1